bitfinex-derivatives/quotes_SOLF0:USTF0_20250114
["timestamp","ask_amount","ask_price","bid_price","bid_amount"]
[1736834731073,2.695,185.61,185.59,8.04934582]
[1736834732376,2.6949,185.62,185.59,8.04934582]
[1736834733271,8.04934582,185.65,185.59,8.04934582]
[1736834733473,2.6951,185.6,185.59,8.04934582]
[1736834733772,8.04934582,185.65,185.59,8.04934582]
[1736834735567,8.04934582,185.63,185.59,8.04934582]
[1736834735872,8.04934582,185.63,185.57,8.04934582]
[1736834736077,2.6953,185.6,185.57,8.04934582]
[1736834736876,8.04934582,185.63,185.57,8.04934582]
[1736834737271,2.6951,185.61,185.57,2.6955]
[1736834737466,8.04934582,185.63,185.57,8.04934582]
[1736834737669,9.64354582,185.63,185.57,8.04934582]
[1736834738070,2.6954,185.59,185.57,8.04934582]
[1736834741679,1.5942,185.63,185.57,8.04934582]
[1736834741872,2.6951,185.61,185.59,8.04934582]
[1736834742671,2.6949,185.62,185.59,8.04934582]
[1736834742872,1.5942,185.63,185.61,8.04934582]
[1736834743675,4.2889,185.63,185.61,8.04934582]
[1736834744277,2.6947,185.63,185.61,8.04934582]
[1736834747875,2.6948,185.62,185.59,8.04934582]
[1736834750281,2.695,185.61,185.59,8.04934582]
[1736834752085,8.04934582,185.61,185.48,5.3937]
[1736834752282,8.04934582,185.57,185.47,95.835]
[1736834752482,8.04934582,185.57,185.52,8.04934582]
[1736834753383,1.5437,185.6,185.52,10.74564582]
[1736834753384,2.6955,185.58,185.52,10.74564582]
[1736834753584,8.04934582,185.59,185.54,8.04934582]
[1736834754081,3.2327,185.62,185.56,8.04934582]
[1736834754281,11.28204582,185.62,185.58,8.04934582]
[1736834754481,2.695,185.61,185.58,8.04934582]
[1736834757383,2.695,185.61,185.6,8.04934582]
[1736834757983,2.6949,185.62,185.6,8.04934582]
[1736834761185,13.52934582,185.64,185.57,2.6955]
[1736834761490,2.6951,185.61,185.58,8.04934582]
[1736834767195,8.04934582,185.62,185.58,8.04934582]
[1736834767401,8.04934582,185.6,185.49,5.48]
[1736834767600,8.04934582,185.58,185.53,8.04934582]
[1736834767791,2.6958,185.56,185.52,2.6963]
[1736834767992,8.04934582,185.58,185.47,95.835]
[1736834768200,8.04934582,185.56,185.5,8.04934582]
[1736834768796,2.6963,185.53,185.5,8.04934582]
[1736834770100,2.6963,185.53,185.48,2.6967]
[1736834770299,2.6963,185.52,185.5,8.04934582]
[1736834776103,2.6962,185.53,185.5,8.04934582]
[1736834780107,8.04934582,185.56,185.52,8.04934582]
[1736834780312,5.48,185.57,185.54,8.04934582]
[1736834780917,2.6958,185.56,185.54,8.04934582]
[1736834781118,8.04934582,185.56,185.47,92.48]
[1736834781318,8.04934582,185.56,185.5,8.04934582]
[1736834781813,2.6961,185.54,185.5,8.04934582]
[1736834783114,8.04934582,185.56,185.5,8.04934582]
[1736834783321,8.04934582,185.52,185.47,103.22634582]
[1736834783820,2.6965,185.51,185.47,103.22634582]
[1736834784419,2.6967,185.49,185.47,92.48]
[1736834784723,2.6967,185.49,185.47,8.04934582]
[1736834786326,2.6969,185.48,185.47,8.04934582]
[1736834788518,2.6969,185.48,185.45,2.6972]
[1736834788822,2.6969,185.48,185.47,8.04934582]
[1736834789720,2.6969,185.48,185.43,2.6975]
[1736834789929,2.6969,185.48,185.47,8.04934582]
[1736834790216,2.6968,185.49,185.47,8.04934582]
[1736834790622,1.5505,185.56,185.47,8.04934582]
[1736834790819,8.04934582,185.55,185.5,8.04934582]
[1736834791014,1.5505,185.56,185.52,8.04934582]
[1736834791622,1.5505,185.56,185.42,3.3035]
[1736834791811,1.5505,185.56,185.51,8.04934582]
[1736834792222,2.6962,185.53,185.51,8.04934582]
[1736834795020,9.59984582,185.56,185.51,8.04934582]
[1736834795325,154.08959746,185.64,185.53,8.04934582]
[1736834795518,15.22714582,185.6,185.53,8.04934582]
[1736834796325,2.6957,185.57,185.53,10.74544582]
[1736834797121,7.1778,185.6,185.55,8.04934582]
[1736834797927,2.6955,185.58,185.55,8.04934582]
[1736834798424,2.6959,185.55,185.52,8.04934582]
[1736834799928,1.6978,185.6,185.54,8.04934582]
[1736834800228,8.04934582,185.62,185.57,8.04934582]
[1736834801128,1.5992,185.63,185.57,8.04934582]
[1736834801129,2.695,185.61,185.57,10.74484582]
[1736834802927,193.6946,185.64,185.59,8.04934582]
[1736834803228,2.6946,185.64,185.61,8.04934582]
[1736834805226,64.99621722,185.65,185.6,8.04934582]
[1736834805428,2.6947,185.63,185.6,8.04934582]
[1736834807630,2.6957,185.57,185.52,2.6962]
[1736834807829,8.04934582,185.59,185.54,8.04934582]
[1736834809231,8.04934582,185.61,185.54,8.04934582]
[1736834810229,8.04934582,185.61,185.56,8.04934582]
[1736834810732,8.04934582,185.63,185.58,8.04934582]
[1736834811226,2.6951,185.61,185.58,8.04934582]
[1736834811430,8.04934582,185.63,185.58,8.04934582]
[1736834811925,2.695,185.61,185.58,8.04934582]
[1736834814234,2.6953,185.6,185.56,8.04934582]
[1736834814932,2.6953,185.59,185.56,8.04934582]
[1736834815633,2.6956,185.57,185.53,2.6961]
[1736834815825,2.6956,185.57,185.55,8.04934582]
[1736834819540,8.04934582,185.59,185.53,8.04934582]
[1736834819731,2.6958,185.56,185.53,8.04934582]
[1736834822236,8.04934582,185.59,185.52,2.6963]
[1736834822437,8.04934582,185.57,185.46,36.79681031]
[1736834822638,8.04934582,185.55,185.5,8.04934582]
[1736834823037,2.6965,185.53,185.52,8.04934582]
[1736834823239,8.04934582,185.57,185.52,8.04934582]
[1736834823535,3.2443,185.62,185.54,8.04934582]
[1736834823739,8.04934582,185.6,185.54,8.04934582]
[1736834824034,8.04934582,185.58,185.52,8.04934582]
[1736834824835,8.04934582,185.56,185.46,36.79681031]
[1736834825036,8.04934582,185.54,185.49,8.04934582]
[1736834825329,2.6968,185.51,185.49,8.04934582]
[1736834828137,2.6968,185.5,185.47,8.04934582]
[1736834828345,8.04934582,185.52,185.47,8.04934582]
[1736834828642,2.6971,185.49,185.47,8.04934582]
[1736834829843,2.6971,185.48,185.47,8.04934582]
[1736834830042,8.04934582,185.5,185.43,92.48]
[1736834830248,8.04934582,185.48,185.43,8.04934582]
[1736834830736,2.6976,185.45,185.41,2.6981]
[1736834830941,2.6976,185.45,185.42,8.04934582]
[1736834833143,2.6975,185.46,185.44,8.04934582]
[1736834834944,2.6969,185.5,185.45,2.6975]
[1736834835145,2.6969,185.5,185.47,8.04934582]
[1736834835339,8.04934582,185.51,185.47,8.04934582]
[1736834835535,2.6974,185.47,185.43,8.04934582]
[1736834836339,8.04934582,185.49,185.43,8.04934582]
[1736834836540,2.6975,185.46,185.43,8.04934582]
[1736834836741,2.6975,185.46,185.42,10.74724582]
[1736834838147,2.6972,185.48,185.44,10.74704582]
[1736834838743,2.6973,185.47,185.35,5.48]
[1736834839047,2.6973,185.47,185.43,8.04934582]
[1736834839248,2.6973,185.47,185.45,8.04934582]
[1736834840049,8.04934582,185.49,185.45,8.04934582]
[1736834840251,2.6972,185.48,185.45,8.04934582]
[1736834840447,3.1295,185.55,185.47,8.04934582]
[1736834840652,2.6967,185.51,185.47,8.04934582]
[1736834841841,8.04934582,185.51,185.45,8.04934582]
[1736834842050,8.04934582,185.51,185.45,10.74694582]
[1736834843146,2.6971,185.49,185.45,10.74694582]
[1736834843342,8.04934582,185.49,185.43,8.04934582]
[1736834843552,8.04934582,185.49,185.43,10.74714582]
[1736834843946,2.6972,185.48,185.43,10.74714582]
[1736834844452,2.6972,185.48,185.44,2.6977]
[1736834844846,2.6973,185.47,185.44,2.6977]
[1736834845042,8.04934582,185.47,185.41,8.04934582]
[1736834845453,2.6977,185.45,185.41,10.74734582]
[1736834846153,2.6977,185.44,185.41,10.74734582]
[1736834846655,2.6977,185.44,185.42,2.698]
[1736834846954,8.04934582,185.49,185.43,8.04934582]
[1736834847449,8.04934582,185.49,185.43,10.74714582]
[1736834847648,8.04934582,185.49,185.43,8.04934582]
[1736834847854,8.04934582,185.49,185.45,10.74684582]
[1736834848050,5.48,185.52,185.45,8.04934582]
[1736834848356,8.04934582,185.51,185.45,8.04934582]
[1736834848653,2.697,185.5,185.45,10.74684582]
[1736834848856,8.04934582,185.51,185.45,10.74684582]
[1736834849353,2.6971,185.49,185.45,10.74684582]
[1736834849556,2.6971,185.49,185.45,8.04934582]
[1736834849750,8.04934582,185.53,185.47,8.04934582]
[1736834850148,2.6968,185.51,185.47,10.74654582]
[1736834850550,8.04934582,185.53,185.47,8.04934582]
[1736834850753,2.6967,185.52,185.48,2.697]
[1736834853850,5.48,185.54,185.49,8.04934582]
[1736834854048,2.6964,185.53,185.49,10.74624582]
[1736834854754,2.6963,185.54,185.5,2.6968]
[1736834858558,2.6964,185.53,185.49,2.697]
[1736834859056,8.04934582,185.53,185.48,8.04934582]
[1736834860046,8.04934582,185.53,185.43,4.71]
[1736834860250,8.04934582,185.53,185.48,8.04934582]
[1736834860955,2.6966,185.52,185.49,2.6969]
[1736834861359,8.04934582,185.55,185.5,8.04934582]
[1736834861655,5.48,185.57,185.52,8.04934582]
[1736834861856,13.52934582,185.57,185.52,8.04934582]
[1736834862057,2.6962,185.55,185.52,8.04934582]
[1736834862256,2.6962,185.55,185.51,2.6967]
[1736834862453,8.04934582,185.55,185.5,8.04934582]
[1736834862857,2.6965,185.53,185.5,8.04934582]
[1736834863658,8.04934582,185.57,185.52,2.6965]
[1736834864453,2.696,185.56,185.5,8.04934582]
[1736834865861,2.696,185.56,185.52,2.6965]
[1736834868259,8.04934582,185.59,185.54,8.04934582]
[1736834868457,8.04934582,185.59,185.56,2.696]
[1736834868955,2.6954,185.6,185.56,10.74524582]
[1736834870851,2.6958,185.58,185.54,2.6962]
[1736834871054,8.04934582,185.59,185.53,8.04934582]
[1736834872058,2.6959,185.57,185.53,10.74574582]
[1736834873758,8.04934582,185.59,185.53,10.74574582]
[1736834874058,2.696,185.56,185.53,10.74574582]
[1736834875859,2.6956,185.59,185.56,2.696]
[1736834880773,65.0089787,185.62,185.57,10.74514582]
[1736834881361,2.6954,185.6,185.55,10.74534582]
[1736834881560,8.04934582,185.59,185.5,4.8686]
[1736834881761,8.04934582,185.57,185.5,4.8686]
[1736834882065,8.04934582,185.53,185.43,92.52]
[1736834882262,8.04934582,185.51,185.45,8.04934582]
[1736834882466,8.04934582,185.51,185.46,2.6974]
[1736834882964,8.04934582,185.51,185.45,8.04934582]
[1736834883165,8.04934582,185.51,185.47,2.6973]
[1736834883364,2.6966,185.53,185.47,2.6973]
[1736834885573,12.56632155,185.54,185.47,2.6973]
[1736834885774,12.56632155,185.54,185.46,2.6974]
[1736834886070,2.6969,185.5,185.43,105.08632155]
[1736834886267,12.56632155,185.54,185.45,2.6976]
[1736834886578,2.697,185.49,185.43,92.52]
[1736834886971,2.697,185.49,185.45,2.6975]
[1736834887668,12.56632155,185.51,185.45,2.6975]
[1736834887869,2.6969,185.5,185.45,2.6975]
[1736834891669,3.1835,185.55,185.46,12.56632155]
[1736834891864,5.48,185.54,185.46,12.56632155]
[1736834893068,8.1763,185.54,185.46,12.56632155]
[1736834893473,8.1763,185.54,185.49,2.6969]
[1736834894273,2.6965,185.53,185.49,2.6969]
[1736834894674,1.6023,185.56,185.49,12.56632155]
[1736834894975,2.6961,185.55,185.49,12.56632155]
[1736834896074,2.6961,185.55,185.51,2.6967]
[1736834900579,2.6961,185.55,185.5,2.6968]
[1736834901180,1.6023,185.56,185.46,12.56632155]
[1736834901380,2.6964,185.54,185.48,2.697]
[1736834903285,10.73664985,185.54,185.48,10.73724985]
[1736834904490,4.2984,185.56,185.51,2.6967]
[1736834904786,9.64254985,185.56,185.51,2.6967]
[1736834904989,9.64254985,185.56,185.5,8.04024985]
[1736834905593,8.04024985,185.54,185.48,8.04024985]
[1736834906496,10.73664985,185.54,185.49,2.697]
[1736834906993,9.64254985,185.56,185.5,8.04024985]
[1736834907790,2.6964,185.54,185.5,8.04024985]
[1736834908498,10.73664985,185.54,185.49,2.697]
[1736834908687,8.04024985,185.54,185.49,2.697]
[1736834908887,2.6964,185.53,185.49,2.697]
[1736834912996,2.6963,185.54,185.51,2.6967]
[1736834913191,7.0823,185.56,185.5,8.04024985]
[1736834913591,5.48,185.56,185.52,8.04024985]
[1736834915202,8.176,185.56,185.53,2.6964]
[1736834916301,5.48,185.56,185.53,2.6964]
[1736834916502,8.1756,185.59,185.54,2.6961]
[1736834916694,16.21584985,185.59,185.54,2.6961]
[1736834916894,10.73584985,185.59,185.54,2.6961]
[1736834918200,8.04024985,185.59,185.55,2.6961]
[1736834918996,21.06854985,185.61,185.57,2.6958]
[1736834919194,65.0089787,185.62,185.57,2.6958]
[1736834919397,13.52024985,185.63,185.57,2.6958]
[1736834919592,154.18019746,185.65,185.59,2.6955]
[1736834919796,8.04024985,185.64,185.59,2.6955]
[1736834919999,8.04024985,185.64,185.58,8.04024985]
[1736834921100,2.695,185.63,185.58,10.73594985]
[1736834922899,8.04024985,185.64,185.58,8.04024985]
[1736834923099,2.6951,185.62,185.58,8.04024985]
[1736834925803,10.73524985,185.63,185.58,10.73584985]
[1736834930400,2.695,185.63,185.58,10.73584985]
[1736834930906,2.695,185.63,185.59,2.6955]
[1736834932207,2.695,185.63,185.58,8.04024985]
[1736834932408,2.695,185.63,185.58,10.73594985]
[1736834937110,8.04024985,185.64,185.58,8.04024985]
[1736834937321,8.04024985,185.6,185.51,3.2534]
[1736834937519,8.04024985,185.6,185.53,8.04024985]
[1736834938013,8.04024985,185.58,185.51,3.2534]
[1736834938217,8.04024985,185.58,185.51,8.04024985]
[1736834938607,2.696,185.56,185.51,10.73684985]
[1736834939011,2.696,185.56,185.52,2.6965]
[1736834939208,8.04024985,185.58,185.53,8.04024985]
[1736834939420,2.6958,185.57,185.53,8.04024985]
[1736834939715,8.04024985,185.6,185.55,8.04024985]
[1736834941118,2.6956,185.59,185.55,10.73634985]
[1736834941620,8.04024985,185.56,185.52,2.6964]
[1736834941819,8.04024985,185.56,185.51,8.04024985]
[1736834942115,10.73594985,185.58,185.53,10.73654985]
[1736834942720,2.6961,185.55,185.51,2.6967]
[1736834942919,2.6961,185.55,185.51,10.73694985]
[1736834944718,2.6961,185.55,185.51,8.04024985]
[1736834945021,2.696,185.56,185.52,2.6966]
[1736834945323,5.48,185.59,185.53,8.04024985]
[1736834945524,5.48,185.59,185.55,8.04024985]
[1736834946821,1.5749,185.63,185.48,38.47905434]
[1736834946822,7.0549,185.63,185.57,8.04024985]
[1736834947023,15.09514985,185.63,185.57,8.04024985]
[1736834947417,12.31014985,185.63,185.58,2.6957]
[1736834949521,3.2816,185.66,185.59,8.04024985]
[1736834949724,3.2816,185.66,185.61,8.04024985]
[1736834950325,5.9762,185.66,185.61,8.04024985]
[1736834951126,67.68559066,185.67,185.61,8.04024985]
[1736834951326,64.99119066,185.67,185.63,8.04024985]
[1736834954131,67.68559066,185.67,185.63,8.04024985]
[1736834955528,10.73444985,185.68,185.63,10.73504985]
[1736834959533,8.04024985,185.68,185.63,10.73504985]
[1736834959934,8.04024985,185.68,185.64,2.6948]
[1736834960135,8.04024985,185.68,185.63,8.04024985]
[1736834960336,8.04024985,185.66,185.56,2.6959]
[1736834960638,8.04024985,185.64,185.58,8.04024985]
[1736834961638,8.04024985,185.62,185.56,8.04024985]
[1736834961934,8.04024985,185.62,185.58,2.6956]
[1736834962134,8.04024985,185.62,185.52,92.48]
[1736834962335,2.6956,185.59,185.55,10.73624985]
[1736834962535,2.6956,185.59,185.55,2.696]
[1736834965833,2.6956,185.59,185.55,10.73624985]
[1736834966137,8.04024985,185.6,185.55,10.73624985]
[1736834966339,10.73564985,185.6,185.55,10.73624985]
[1736834967436,2.6957,185.58,185.53,2.6963]
[1736834967639,8.04024985,185.58,185.52,100.52024985]
[1736834968236,2.6957,185.59,185.54,10.73644985]
[1736834968436,2.6957,185.59,185.54,8.04024985]
[1736834968635,8.04024985,185.6,185.54,8.04024985]
[1736834969336,9.65884985,185.62,185.56,8.04024985]
[1736834969736,2.6953,185.61,185.56,10.73614985]
[1736834969931,9.65884985,185.62,185.56,8.04024985]
[1736834970136,3.1779,185.63,185.58,8.04024985]
[1736834970537,3.1779,185.63,185.58,10.73594985]
[1736834972234,8.04024985,185.64,185.6,8.04024985]
[1736834972441,5.48,185.65,185.6,8.04024985]
[1736834972741,13.52024985,185.67,185.6,8.04024985]
[1736834974138,13.52024985,185.67,185.61,2.6952]
[1736834974139,2.6946,185.66,185.61,2.6952]
[1736834980148,8.04024985,185.65,185.61,2.6952]
[1736834982348,8.04024985,185.63,185.53,3.0999]
[1736834982550,8.04024985,185.63,185.56,8.04024985]
[1736834982747,3.1847,185.64,185.52,92.48]
[1736834982748,8.04024985,185.61,185.52,92.48]
[1736834982944,10.73594985,185.59,185.54,8.04024985]
[1736834983149,8.04024985,185.59,185.52,100.52024985]
[1736834983354,10.73624985,185.57,185.52,103.21664985]
[1736834983745,8.04024985,185.57,185.52,10.73664985]
[1736834983950,8.04024985,185.55,185.48,1.6852]
[1736834984254,8.04024985,185.55,185.49,8.04024985]
[1736834985254,8.04024985,185.55,185.49,10.73714985]
[1736834985255,2.6963,185.54,185.49,10.73714985]
[1736834985454,8.04024985,185.55,185.49,8.04024985]
[1736834985654,8.04024985,185.57,185.51,8.04024985]
[1736834987061,8.04024985,185.57,185.53,2.6964]
[1736834990158,1.6679,185.6,185.56,2.696]
[1736834990361,1.6679,185.6,185.55,8.04024985]
[1736834991155,4.3634,185.6,185.55,10.73634985]
[1736834993759,12.40364985,185.6,185.55,10.73634985]
[1736834997164,16.21544985,185.62,185.57,10.73604985]
[1736834999263,193.695,185.63,185.59,2.6955]
[1736834999461,11.22494985,185.64,185.59,8.04024985]
[1736835000261,11.22494985,185.64,185.6,2.6954]
[1736835000461,13.52024985,185.66,185.61,8.04024985]
[1736835001761,13.52024985,185.66,185.59,8.04024985]
[1736835001969,8.04024985,185.64,185.59,8.04024985]
[1736835002663,10.73504985,185.64,185.59,10.73564985]
[1736835003168,10.73504985,185.64,185.59,8.04024985]
[1736835003368,10.73504985,185.64,185.6,2.6954]
[1736835004863,13.52024985,185.66,185.61,8.04024985]
[1736835005069,16.21474985,185.66,185.62,2.695]
[1736835005269,8.1745,185.66,185.62,2.695]
[1736835006061,5.48,185.66,185.63,10.73514985]
[1736835006262,5.48,185.66,185.63,2.6949]
[1736835006668,16.21494985,185.66,185.61,10.73534985]
[1736835007871,16.21494985,185.66,185.62,2.6951]
[1736835008071,13.52024985,185.66,185.61,8.04024985]
[1736835009073,13.52024985,185.66,185.63,2.6949]
[1736835009472,5.48,185.66,185.63,2.6949]
[1736835009672,2.6944,185.67,185.63,2.6949]
[1736835012775,8.04024985,185.68,185.64,2.6947]
[1736835013179,8.04024985,185.68,185.63,8.04024985]
[1736835014080,8.04024985,185.66,185.5,1.5977]
[1736835014276,8.04024985,185.64,185.59,8.04024985]
[1736835014779,10.73514985,185.64,185.59,8.04024985]
[1736835015287,10.73514985,185.64,185.6,2.6953]
[1736835016277,2.6947,185.65,185.61,10.73544985]
[1736835016483,5.48,185.69,185.63,8.04024985]
[1736835016683,8.04024985,185.66,185.61,8.04024985]
[1736835017072,10.73494985,185.66,185.61,10.73544985]
[1736835017279,8.04024985,185.66,185.59,8.04024985]
[1736835018283,8.04024985,185.66,185.6,2.6954]
[1736835018284,2.6948,185.64,185.6,2.6954]
[1736835019576,10.73504985,185.64,185.6,2.6954]
[1736835019781,10.73504985,185.64,185.53,1.5577]
[1736835019782,8.04024985,185.62,185.58,2.6956]
[1736835020379,10.73544985,185.62,185.58,2.6956]
[1736835022987,2.6952,185.62,185.58,2.6956]
[1736835023189,8.04024985,185.63,185.59,2.6955]
[1736835023594,8.04024985,185.63,185.58,8.04024985]
[1736835025193,8.04024985,185.63,185.6,2.6953]
[1736835025390,2.6949,185.64,185.6,2.6953]
[1736835028998,2.6949,185.64,185.6,10.73554985]
[1736835037698,2.6949,185.64,185.6,2.6953]
[1736835037699,8.04024985,185.63,185.6,2.6953]
[1736835037895,8.04024985,185.61,185.5,1.5977]
[1736835038101,8.04024985,185.61,185.55,8.04024985]
[1736835038502,8.04024985,185.61,185.55,10.73624985]
[1736835038503,2.6954,185.6,185.55,10.73624985]
[1736835044712,2.6954,185.6,185.55,8.04024985]
[1736835044912,2.6954,185.6,185.56,2.696]
[1736835045108,2.6954,185.6,185.57,8.04024985]
[1736835045515,8.04024985,185.61,185.5,1.5977]
[1736835045716,2.6957,185.59,185.55,8.04024985]
[1736835046920,8.04024985,185.61,185.54,2.6962]
[1736835047117,3.3481,185.63,185.54,10.73644985]
[1736835047118,2.6958,185.58,185.54,10.73644985]
[1736835049517,2.6959,185.57,185.54,8.04024985]
[1736835054031,5.48,185.6,185.56,8.04024985]
[1736835055133,9.65464985,185.62,185.56,10.73614985]
[1736835055329,9.65464985,185.62,185.58,8.04024985]
[1736835055534,8.04024985,185.62,185.58,8.04024985]
[1736835056534,2.6954,185.61,185.58,8.04024985]
[1736835056724,8.04024985,185.62,185.56,10.73624985]
[1736835058334,2.6954,185.6,185.56,10.73624985]
[1736835063838,2.6957,185.59,185.54,2.6962]
[1736835064033,8.04024985,185.6,185.54,8.04024985]
[1736835064635,2.6958,185.58,185.54,8.04024985]
[1736835065035,2.6958,185.58,185.54,10.73634985]
[1736835065233,2.6959,185.57,185.54,8.04024985]
[1736835066940,2.6959,185.57,185.52,10.73674985]
[1736835069130,2.6959,185.57,185.53,2.6964]
[1736835072335,2.6959,185.57,185.53,10.73664985]
[1736835078451,8.04024985,185.6,185.53,8.04024985]
[1736835078650,5.48,185.61,185.55,8.04024985]
[1736835078948,5.48,185.61,185.57,8.04024985]
[1736835079349,196.48,185.65,185.59,8.04024985]
[1736835079551,196.48,185.65,185.47,38.47484612]
[1736835079552,196.48,185.65,185.61,8.04024985]
[1736835079858,2.6948,185.64,185.59,10.73574985]
[1736835080547,2.695,185.63,185.59,10.73574985]
[1736835083750,2.6956,185.59,185.55,8.04024985]
[1736835086853,10.73584985,185.59,185.54,2.6962]
[1736835087249,10.73584985,185.59,185.55,8.04024985]
[1736835088052,10.73584985,185.59,185.54,2.6962]
[1736835089049,8.04024985,185.59,185.52,2.6964]
[1736835089248,3.2385,185.64,185.52,2.6964]
[1736835089249,8.04024985,185.57,185.52,2.6964]
[1736835090054,2.696,185.56,185.52,2.6964]
[1736835090852,8.04024985,185.55,185.52,2.6964]
[1736835092145,2.6963,185.54,185.5,10.73704985]
[1736835098464,2.6963,185.54,185.51,8.04024985]
[1736835098663,5.48,185.57,185.53,10.73664985]
[1736835098865,5.48,185.57,185.53,8.04024985]
[1736835099061,5.48,185.57,185.55,8.04024985]
[1736835099261,8.1759,185.57,185.55,8.04024985]
[1736835099567,5.48,185.6,185.55,8.04024985]
[1736835099765,5.48,185.61,185.55,8.04024985]
[1736835101164,2.6956,185.59,185.55,10.73634985]
[1736835102166,9.72904985,185.62,185.47,38.47484612]
[1736835102167,148.70019746,185.69,185.57,8.04024985]
[1736835102364,156.74044731,185.69,185.63,8.04024985]
[1736835102666,73.03064444,185.67,185.63,8.04024985]
[1736835103168,8.04024985,185.65,185.59,8.04024985]
[1736835103958,8.04024985,185.65,185.49,5.48]
[1736835104162,2.695,185.63,185.58,10.73584985]
[1736835104366,10.73524985,185.63,185.58,10.73584985]
[1736835105367,2.695,185.63,185.58,10.73584985]
[1736835108174,2.695,185.63,185.58,2.6956]
[1736835108371,10.73524985,185.63,185.58,10.73584985]
[1736835108770,2.6952,185.62,185.58,10.73584985]
[1736835112875,2.6948,185.64,185.6,10.73564985]
[1736835113077,13.52024985,185.65,185.6,8.04024985]
[1736835113273,8.04024985,185.65,185.6,8.04024985]
[1736835114080,10.73494985,185.65,185.61,2.6952]
[1736835114475,64.99039459,185.67,185.62,8.04024985]
[1736835114775,64.99039459,185.67,185.64,8.04024985]
[1736835114968,64.99039459,185.67,185.62,8.04024985]
[1736835116076,64.99039459,185.67,185.63,2.6949]
[1736835116581,2.6943,185.68,185.63,2.6949]
[1736835120779,8.04024985,185.65,185.6,8.04024985]
[1736835121585,10.73494985,185.65,185.6,10.73554985]
[1736835122780,10.73494985,185.65,185.6,8.04024985]
[1736835123084,10.73494985,185.65,185.61,2.6953]
[1736835123384,2.6947,185.65,185.61,2.6953]
[1736835128386,2.6947,185.65,185.62,8.04024985]
[1736835128989,2.6945,185.67,185.63,2.6949]
[1736835135092,2.6948,185.65,185.61,2.6952]
[1736835136592,2.6948,185.65,185.61,10.73544985]
[1736835146792,2.6948,185.65,185.61,2.6952]
[1736835150099,2.6948,185.64,185.6,8.04024985]
[1736835151097,2.6947,185.65,185.6,8.04024985]
[1736835152095,2.6947,185.65,185.61,2.6952]
[1736835156302,2.6948,185.64,185.61,2.6952]
[1736835159903,2.6948,185.64,185.53,4.6793]
[1736835160104,5.48,185.69,185.53,4.6793]
[1736835160105,8.04024985,185.6,185.53,4.6793]
[1736835160607,2.6956,185.59,185.55,2.696]
[1736835161206,8.04024985,185.58,185.55,2.696]
[1736835162217,8.04024985,185.6,185.53,8.04024985]
[1736835162416,2.6954,185.6,185.56,2.696]
[1736835162607,10.73564985,185.6,185.56,2.696]
[1736835171725,13.52024985,185.62,185.57,8.04024985]
[1736835171923,2.6952,185.62,185.57,8.04024985]
[1736835172323,13.52024985,185.64,185.59,8.04024985]
[1736835172520,16.21514985,185.64,185.59,10.73564985]
[1736835173725,16.21514985,185.64,185.59,8.04024985]
[1736835173926,16.21514985,185.64,185.6,2.6954]
[1736835174329,8.1749,185.64,185.6,2.6954]
[1736835174725,2.695,185.63,185.59,10.73564985]
[1736835177126,5.48,185.64,185.59,8.04024985]
[1736835177331,3.3209,185.65,185.61,8.04024985]
[1736835177534,73.02766842,185.66,185.61,8.04024985]
[1736835179122,2.6947,185.65,185.61,10.73534985]
[1736835179731,2.6947,185.65,185.62,2.6951]
[1736835185431,8.04024985,185.66,185.63,2.6948]
[1736835185637,1.5466,185.71,185.65,8.04024985]
[1736835185828,1.5466,185.71,185.67,8.04024985]
[1736835186028,13.52024985,185.72,185.67,8.04024985]
[1736835186525,8.04024985,185.72,185.67,8.04024985]
[1736835187136,2.6938,185.71,185.67,10.73464985]
[1736835188228,2.694,185.7,185.66,2.6945]
[1736835188430,10.73424985,185.7,185.66,2.6945]
[1736835189441,10.73454985,185.68,185.63,10.73514985]
[1736835189936,5.48,185.7,185.63,8.04024985]
[1736835190130,8.04024985,185.68,185.63,8.04024985]
[1736835190336,8.04024985,185.68,185.56,4.8052]
[1736835190538,8.04024985,185.68,185.62,8.04024985]
[1736835190835,5.48,185.7,185.56,4.8052]
[1736835190836,8.04024985,185.66,185.56,4.8052]
[1736835191138,8.04024985,185.66,185.6,8.04024985]
[1736835193142,2.6948,185.65,185.61,2.6952]
[1736835199344,2.6948,185.64,185.61,2.6952]